bitfinex-derivatives/quotes_BTCF0:USTF0_20210111
["timestamp","ask_amount","ask_price","bid_price","bid_amount"]
[1610371964939,0.00037161,32997.0,32980.0,0.21501608]
[1610371965137,0.00037157,32999.0,32980.0,0.21501608]
[1610371965538,0.70797524,33008.0,32980.0,0.21501608]
[1610371965741,0.70903842,33012.0,32980.0,0.21501608]
[1610371965941,0.0003715,33007.0,32980.0,0.21501608]
[1610371966350,0.00037146,33011.0,32980.0,0.21501608]
[1610371966543,0.00037142,33006.0,32999.0,0.13632608]
[1610371966733,0.00037142,33010.0,32999.0,0.13632608]
[1610371966941,0.44341945,33010.0,32999.0,0.22620608]
[1610371967140,0.44343408,33009.0,32991.0,0.08157]
[1610371967337,0.44380559,33009.0,32980.0,0.07869]
[1610371967544,0.71192656,33009.0,32980.0,0.07869]
[1610371967744,0.71105768,33007.0,32980.0,0.07869]
[1610371968344,0.42529085,33007.0,32980.0,0.07869]
[1610371968540,0.07533,33007.0,33006.0,0.13632608]
[1610371968741,0.07533,33007.0,33006.0,0.20542608]
[1610371968939,1.01001625,33031.0,33006.0,0.20357932]
[1610371969340,0.2869,33031.0,33006.0,0.20357932]
[1610371969539,0.6647858,33032.0,33006.0,0.20357932]
[1610371969740,0.00036996,33030.0,33006.0,0.20357932]
[1610371969940,0.00037117,33031.0,33006.0,0.20357932]
[1610371970142,0.72905602,33038.0,33006.0,1.70357932]
[1610371970543,0.89321525,33043.0,33006.0,0.0691]
[1610371970544,0.00037113,33037.0,33006.0,0.0691]
[1610371971043,0.00037118,33042.0,33006.0,0.0691]
[1610371971246,0.00037118,33036.0,33006.0,0.0691]
[1610371971443,0.73028279,33041.0,33006.0,0.0691]
[1610371971645,0.72954801,33039.0,33006.0,0.0691]
[1610371971844,0.00037125,33035.0,33006.0,0.0691]
[1610371972044,0.73039917,33041.0,33006.0,0.0691]
[1610371972450,0.73109181,33044.0,33006.0,0.0691]
[1610371972665,0.50109181,33044.0,33006.0,0.0691]
[1610371972846,0.81903909,33052.0,33006.0,0.0691]
[1610371973064,0.13632608,33050.0,33006.0,0.0691]
[1610371973248,0.22073608,33050.0,33006.0,0.0691]
[1610371973452,0.22110719,33050.0,33006.0,0.0691]
[1610371973647,0.00037116,33049.0,33006.0,0.0691]
[1610371973848,0.00037116,33049.0,32992.0,1.5]
[1610371974947,0.00037116,33049.0,33048.0,0.13632608]
[1610371975549,0.00037116,33049.0,33029.0,0.0954]
[1610371975750,0.08441,33050.0,33029.0,0.0954]
[1610371975950,0.00037115,33048.0,33029.0,0.0954]
[1610371976150,0.00037115,33048.0,33022.0,0.08642]
[1610371976351,0.00037115,33048.0,32991.0,4.105]
[1610371976352,0.80605832,33043.0,32991.0,4.105]
[1610371976549,0.80471787,33038.0,32991.0,4.105]
[1610371976949,0.80083124,33037.0,33033.0,0.13632608]
[1610371977149,0.8012026,33037.0,32991.0,4.105]
[1610371977350,0.7973165,33032.0,32991.0,4.105]
[1610371977549,0.8795065,33032.0,32991.0,4.105]
[1610371977749,0.79693176,33031.0,32992.0,1.5]
[1610371978050,0.00037139,33030.0,32992.0,1.5]
[1610371978451,0.00037139,33030.0,33015.0,4.4299]
[1610371978650,0.03,33038.0,33015.0,4.54107]
[1610371978853,0.00037137,33029.0,33015.0,4.54107]
[1610371979050,0.00037137,33029.0,33028.0,0.13632608]
[1610371979251,0.00037129,33037.0,33028.0,0.21824954]
[1610371979451,0.03,33038.0,33028.0,0.21824954]
[1610371979650,0.03,33038.0,33029.0,1.5]
[1610371980651,1.24429698,33075.0,33029.0,1.5]
[1610371981051,1.24644655,33080.0,33074.0,0.13632608]
[1610371981456,1.41538619,33083.0,33049.0,0.0784]
[1610371981652,0.00037091,33079.0,33049.0,0.0784]
[1610371981853,0.09795,33079.0,33049.0,0.0784]
[1610371982051,0.00037084,33078.0,33049.0,0.0784]
[1610371982852,0.00037068,33085.0,33049.0,0.0784]
[1610371983053,4.3923,33086.0,33084.0,0.13632608]
[1610371983253,4.3923,33086.0,33085.0,1.5]
[1610371984055,0.4102205,33117.0,33085.0,1.5]
[1610371984255,1.43541035,33127.0,33085.0,1.5]
[1610371984455,0.00037053,33116.0,33085.0,1.5]
[1610371984656,0.06929053,33126.0,33085.0,1.5]
[1610371985058,0.00037053,33115.0,33085.0,1.5]
[1610371985256,1.57668521,33138.0,33086.0,1.5]
[1610371985456,2.09606118,33148.0,33086.0,1.5]
[1610371985457,0.08941,33148.0,33086.0,1.5]
[1610371985657,0.00037045,33125.0,33086.0,1.5]
[1610371985856,0.00037037,33137.0,33086.0,1.5]
[1610371986057,0.08941,33148.0,33086.0,1.5]
[1610371986257,0.08941,33148.0,33084.0,0.08726]
[1610371986258,0.08941,33148.0,33087.0,1.5]
[1610371986959,0.08941,33148.0,33147.0,0.13632608]
[1610371987759,0.13632608,33139.0,33122.0,0.10203]
[1610371987959,0.08941,33148.0,33122.0,0.10203]
[1610371988159,0.06958,33155.0,33122.0,0.10203]
[1610371988659,1.75413086,33187.0,33122.0,0.10203]
[1610371988859,1.75866005,33188.0,33122.0,0.10203]
[1610371989062,1.75866005,33188.0,33185.0,0.13632608]
[1610371989267,0.2732,33190.0,33122.0,0.10203]
[1610371989268,2.03620521,33190.0,33140.0,0.11097]
[1610371989458,1.57970521,33190.0,33140.0,0.11097]
[1610371989659,1.76646591,33198.0,33140.0,0.11097]
[1610371989860,1.91575416,33199.0,33140.0,0.11097]
[1610371990361,1.92044722,33203.0,33140.0,0.11097]
[1610371990863,6.30880861,33216.0,33140.0,0.11097]
[1610371990864,1.92933533,33211.0,33140.0,0.11097]
[1610371991064,1.92933533,33211.0,33194.0,0.13632608]
[1610371991268,1.94327757,33212.0,33140.0,0.11097]
[1610371991665,3.7975,33216.0,33140.0,0.11097]
[1610371993074,3.7975,33216.0,33210.0,0.13632608]
[1610371993667,3.7975,33216.0,33160.0,0.07301]
[1610371993867,3.87917,33216.0,33177.0,0.07391]
[1610371994080,3.87917,33216.0,33160.0,0.07301]
[1610371994274,3.87917,33216.0,33177.0,0.08815]
[1610371995069,3.87917,33216.0,33215.0,0.13632608]
[1610371995470,3.7975,33216.0,33205.0,0.10792]
[1610371995669,3.7975,33216.0,33192.0,0.07369]
[1610371995670,3.7975,33216.0,33192.0,0.04528392]
[1610371997071,3.7975,33216.0,33215.0,0.13632608]
[1610371997273,0.07371,33228.0,33215.0,0.13632608]
[1610371998072,0.07371,33228.0,33201.0,0.09149]
[1610371998272,0.07371,33228.0,33177.0,0.08815]
[1610371999072,0.13632608,33179.0,33177.0,0.08815]
[1610371999271,0.13632608,33179.0,33151.0,0.13632608]
[1610371999674,0.13632608,33179.0,33102.0,0.2933]
[1610372000571,0.0917,33178.0,33102.0,0.2933]
[1610372000772,0.13632608,33179.0,33102.0,0.2933]
[1610372001171,0.13632608,33168.0,33161.0,0.08075]
[1610372001771,0.089,33167.0,33161.0,0.08075]
[1610372002174,0.13632608,33168.0,33161.0,0.08075]
[1610372002673,0.13632608,33168.0,33138.0,0.08636]
[1610372002872,0.21351608,33168.0,33138.0,0.08636]
[1610372003073,0.13632608,33149.0,33138.0,0.08636]
[1610372003674,0.07719,33168.0,33138.0,0.08636]
[1610372003874,0.06975,33179.0,33138.0,0.08636]
[1610372004677,0.08302,33186.0,33138.0,0.08636]
[1610372004876,1.98645873,33242.0,33138.0,0.08636]
[1610372004877,1.84613134,33242.0,33138.0,0.08636]
[1610372005076,1.84613134,33242.0,33181.0,0.13632608]
[1610372005276,0.2742,33247.0,33181.0,0.13632608]
[1610372005677,0.2762,33246.0,33181.0,0.13632608]
[1610372005877,0.0896,33245.0,33181.0,0.13632608]
[1610372006076,0.37241,33246.0,33181.0,0.13632608]
[1610372007093,0.13632608,33196.0,33178.0,0.08145]
[1610372007488,0.00036981,33195.0,33178.0,0.08145]
[1610372008283,0.00036993,33197.0,33178.0,0.08145]
[1610372008493,0.00036989,33194.0,33179.0,0.0892]
[1610372008888,0.00036986,33196.0,33179.0,0.0892]
[1610372009087,0.00036988,33193.0,33184.0,0.13632608]
[1610372009283,0.00036981,33195.0,33184.0,0.13632608]
[1610372009491,0.00036981,33192.0,33178.0,0.08145]
[1610372009882,0.00036977,33194.0,33178.0,0.08145]
[1610372010082,0.0003698,33203.0,33178.0,0.08145]
[1610372010282,0.00036983,33193.0,33175.0,4.2856]
[1610372010482,0.08080983,33193.0,33175.0,4.2856]
[1610372010682,0.08044,33193.0,33175.0,4.2856]
[1610372010883,0.00036989,33192.0,33175.0,4.2856]
[1610372011083,0.13632608,33176.0,33175.0,4.2856]
[1610372011483,0.13669599,33176.0,33175.0,4.2856]
[1610372011886,0.13669599,33176.0,33175.0,4.00947144]
[1610372012084,0.13669599,33176.0,33154.0,0.13632608]
[1610372012487,0.00036996,33175.0,33154.0,0.13632608]
[1610372012686,0.00036996,33175.0,33142.0,4.4642]
[1610372013089,0.13632608,33158.0,33148.0,0.13632608]
[1610372013286,0.00036996,33175.0,33148.0,0.13632608]
[1610372013489,0.00037,33176.0,33148.0,0.21660608]
[1610372013886,0.00036995,33174.0,33148.0,0.21660608]
[1610372014086,0.00036991,33175.0,33148.0,0.08028]
[1610372014287,0.00036993,33173.0,33148.0,0.08028]
[1610372014688,0.00037002,33174.0,33148.0,0.08028]
[1610372014890,0.09997,33185.0,33148.0,0.08028]
[1610372015091,0.13632608,33163.0,33148.0,0.08028]
[1610372015288,0.09166,33172.0,33148.0,0.08028]
[1610372015888,0.00036893,33171.0,33148.0,0.08028]
[1610372016689,0.00036893,33177.0,33148.0,0.08028]
[1610372017090,0.00037003,33170.0,33148.0,0.08028]
[1610372017291,0.03017365,33177.0,33148.0,0.08028]
[1610372017491,0.00036996,33169.0,33148.0,0.08028]
[1610372017693,0.03016423,33192.0,33148.0,0.08028]
[1610372018093,0.00036994,33168.0,33148.0,0.08028]
[1610372018293,0.0003699,33191.0,33148.0,0.08028]
[1610372018494,0.03016421,33192.0,33132.0,4.8186]
[1610372018693,0.03016421,33192.0,33148.0,0.10811]
[1610372018894,0.00036993,33190.0,33148.0,0.10811]
[1610372019093,0.13632608,33182.0,33175.0,0.13632608]
[1610372019294,0.06896,33182.0,33175.0,0.13632608]
[1610372019494,0.06896,33182.0,33148.0,0.10811]
[1610372019695,0.00036993,33181.0,33148.0,0.10811]
[1610372020095,0.03015926,33204.0,33148.0,0.10811]
[1610372020494,0.00036975,33180.0,33148.0,1.60811]
[1610372020695,0.00036971,33203.0,33148.0,1.60811]
[1610372020895,0.00036971,33179.0,33148.0,1.60811]
[1610372021095,0.00036971,33179.0,33178.0,0.13632608]
[1610372021295,0.00036971,33202.0,33178.0,0.22293608]
[1610372021496,0.00036969,33179.0,33178.0,0.22293608]
[1610372021695,0.00036963,33201.0,33178.0,0.22293608]
[1610372022096,0.00036961,33179.0,33178.0,0.22293608]
[1610372022297,0.00036963,33200.0,33178.0,0.22293608]
[1610372022497,0.00036959,33179.0,33178.0,0.22293608]
[1610372022899,0.03013688,33210.0,33178.0,0.22293608]
[1610372023100,0.00036961,33179.0,33178.0,0.08661]
[1610372023298,0.00036964,33209.0,33178.0,0.08661]
[1610372023500,0.00036968,33179.0,33178.0,0.08661]
[1610372023899,0.00036968,33208.0,33178.0,0.08661]
[1610372024101,0.00036972,33179.0,33178.0,0.08661]
[1610372024499,0.11056,33188.0,33148.0,0.10811]
[1610372024699,0.00036979,33179.0,33138.0,0.08636]
[1610372024900,0.00036979,33179.0,33148.0,0.09212]
[1610372025099,0.00036979,33179.0,33171.0,0.13632608]
[1610372025501,0.03016532,33187.0,33171.0,0.21692608]
[1610372025698,0.00036994,33178.0,33171.0,0.21692608]
[1610372026099,0.00036978,33196.0,33171.0,0.21692608]
[1610372026300,0.00036978,33177.0,33171.0,0.21692608]
[1610372026500,0.00036976,33195.0,33171.0,0.21692608]
[1610372026900,0.00036979,33203.0,33171.0,0.21692608]
[1610372027099,0.00036976,33194.0,33187.0,0.13632608]
[1610372027300,0.13632608,33199.0,33187.0,0.13632608]
[1610372027500,0.00036977,33193.0,33187.0,0.21308608]
[1610372027901,0.00036969,33198.0,33187.0,0.21308608]
[1610372028103,0.03014612,33211.0,33187.0,0.21308608]
[1610372029202,0.13632608,33206.0,33204.0,0.13632608]
[1610372029401,0.13632608,33206.0,33187.0,0.07676]
[1610372029803,0.00036966,33205.0,33187.0,0.07676]
[1610372030405,0.00036966,33211.0,33187.0,0.07676]
[1610372030804,0.03014122,33211.0,33187.0,0.07676]
[1610372031005,0.00036966,33211.0,33187.0,0.07676]
[1610372031204,0.00036963,33210.0,33200.0,0.13632608]
[1610372031604,0.07393884,33234.0,33200.0,0.13632608]
[1610372031605,0.00036963,33211.0,33200.0,0.13632608]
[1610372033208,0.13632608,33209.0,33196.0,0.09197]
[1610372033605,0.03014641,33208.0,33196.0,0.09197]
[1610372033806,0.03014641,33208.0,33187.0,0.07676]
[1610372034007,0.03014641,33208.0,33171.0,0.0806]
[1610372034220,0.03014641,33208.0,33164.0,0.08369]
[1610372034407,0.03014641,33208.0,33100.0,1.5]
[1610372034606,0.03014641,33208.0,33087.0,2.12110263]
[1610372034808,0.03014641,33208.0,33082.0,2.12212246]
[1610372035206,0.03014641,33208.0,33077.0,0.1556]
[1610372035207,0.13632608,33157.0,33077.0,0.1556]
[1610372035608,0.13632608,33157.0,33067.0,0.05022575]
[1610372035609,0.00036997,33156.0,33067.0,0.05022575]
[1610372035808,0.00036997,33156.0,33054.0,2.12680384]
[1610372036008,0.03018294,33156.0,33050.0,2.12751964]
[1610372036208,0.32818294,33156.0,33051.0,1.5]
[1610372036408,0.32818294,33156.0,33052.0,1.5]
[1610372036609,0.0301878,33155.0,33052.0,1.58382]
[1610372036808,0.00037022,33155.0,33053.0,0.0720693]
[1610372037210,0.13632608,33098.0,33080.0,0.13632608]
[1610372037610,0.13632608,33098.0,33081.0,0.0003017]
[1610372037811,0.13632608,33098.0,33081.0,0.1036617]
[1610372038210,0.00037048,33097.0,33081.0,0.10336]
[1610372038412,0.10801048,33097.0,33081.0,0.10336]
[1610372038811,0.10801048,33097.0,33052.0,0.08382]
[1610372039011,0.00037068,33096.0,33052.0,0.08382]
[1610372039210,0.00037068,33096.0,33060.0,0.13632608]
[1610372039411,0.00037068,33096.0,33060.0,0.10742]
[1610372039811,0.10764,33097.0,33060.0,0.10742]
[1610372040411,0.10764,33097.0,33052.0,0.08382]
[1610372040612,0.10764,33097.0,32993.0,2.15594514]
[1610372041014,0.00037107,33096.0,32981.0,2.30818557]
[1610372041212,0.13632608,33029.0,32981.0,2.30818557]
[1610372041412,0.13632608,33029.0,32982.0,0.00030347]
[1610372041611,0.13632608,33029.0,32982.0,0.10105347]
[1610372041813,0.13632608,33029.0,32982.0,2.25361164]
[1610372042213,0.13632608,33029.0,32982.0,0.10075]
[1610372042612,0.2751,33061.0,32982.0,0.10075]
[1610372043013,0.2751,33061.0,32983.0,1.5]
[1610372043412,0.2751,33061.0,32984.0,0.00031576]
[1610372044016,0.2751,33061.0,32988.0,2.14829758]
[1610372044214,0.2751,33061.0,32995.0,4.1581]
[1610372044414,0.2751,33061.0,32996.0,1.50031557]
[1610372044815,0.2751,33061.0,32997.0,0.00031555]
[1610372045216,0.2751,33061.0,32995.0,4.23333]
[1610372045415,0.36078,33061.0,32995.0,4.23333]
[1610372046016,0.13632608,33006.0,33001.0,0.13632608]
[1610372046219,0.13632608,33006.0,32995.0,4.23333]
[1610372046819,0.13602311,33006.0,32995.0,4.23333]
[1610372047019,0.09728,33037.0,32995.0,4.23333]
[1610372047618,0.291,33046.0,32995.0,4.23333]
[1610372048419,0.13632608,33003.0,32995.0,4.23333]
[1610372048820,0.09046,33028.0,32995.0,4.23333]
[1610372049820,0.09046,33028.0,32995.0,4.1581]
[1610372051021,0.13632608,32996.0,32995.0,4.1581]
[1610372053621,0.13632608,32996.0,32937.0,3.6733]
[1610372054023,3.418,32999.0,32937.0,3.6733]
[1610372054223,3.418,32999.0,32937.0,3.74781]
[1610372054422,3.418,32999.0,32938.0,1.5]
[1610372055422,3.418,32999.0,32937.0,3.74781]
[1610372055623,3.418,32999.0,32938.0,1.5]
[1610372055822,3.418,32999.0,32998.0,0.13632608]
[1610372056023,3.418,32999.0,32998.0,0.24570608]
[1610372056423,0.09511,33049.0,32998.0,0.24570608]
[1610372057024,0.09511,33049.0,32998.0,0.10938]
[1610372057625,0.13632608,33014.0,32998.0,0.10938]
[1610372058023,0.09869,33035.0,32998.0,0.10938]
[1610372060229,0.13632608,32999.0,32998.0,0.10938]
[1610372060429,0.09869,33035.0,32998.0,0.10938]
[1610372060629,0.07222,33022.0,32998.0,0.10938]
[1610372061030,0.07222,33022.0,32955.0,3.5442]
[1610372061431,0.07222,33022.0,32956.0,1.5]
[1610372061630,0.6981,33034.0,32956.0,1.58346]
[1610372061832,0.6981,33034.0,32996.0,0.25]
[1610372062034,0.6981,33034.0,32996.0,0.34573]
[1610372062232,0.6981,33034.0,33023.0,0.13632608]
[1610372062430,0.6981,33034.0,33023.0,0.11043]
[1610372063937,0.6981,33034.0,33016.0,0.0821]
[1610372064335,0.13632608,33017.0,33016.0,0.0821]
[1610372064932,0.13632608,33017.0,32996.0,0.34573]
[1610372066134,0.23377608,33017.0,32996.0,0.34573]
[1610372066335,0.09745,33017.0,32996.0,0.34573]
[1610372066535,0.09745,33017.0,32996.0,0.25]
[1610372067935,0.09188,33024.0,32996.0,0.25]
[1610372068137,0.10752,33031.0,32996.0,0.25]
[1610372068336,0.10752,33031.0,33030.0,0.13632608]
[1610372068538,0.10752,33031.0,33014.0,0.11366]
[1610372069737,0.09007,33031.0,32996.0,0.34701]
[1610372070347,0.13632608,32997.0,32996.0,0.34701]
[1610372070738,0.11113,33007.0,32996.0,0.34701]
[1610372071763,0.09007,33031.0,32996.0,0.34701]
[1610372072359,0.00037155,33030.0,32996.0,0.34701]
[1610372073840,0.09007,33031.0,32996.0,0.34701]
[1610372074440,0.09007,33031.0,33004.0,0.13632608]
[1610372074642,0.09007,33031.0,33004.0,0.23037608]
[1610372074839,0.10266,33038.0,33004.0,0.23037608]
[1610372075041,4.0217,33039.0,33004.0,0.23037608]
[1610372075243,0.00037137,33037.0,33004.0,0.23037608]
[1610372075440,4.0217,33039.0,33004.0,0.23037608]
[1610372075641,0.00037128,33036.0,33005.0,0.00031583]
[1610372076040,4.0217,33039.0,33005.0,0.00031583]
[1610372076041,0.00037121,33038.0,33005.0,0.00031583]
[1610372076242,0.00037113,33035.0,33005.0,0.00031583]
[1610372076441,0.00037115,33037.0,33005.0,0.00031583]
[1610372076743,0.00037115,33034.0,33005.0,0.00031583]
[1610372077144,4.0217,33039.0,33005.0,0.00031583]
[1610372077544,0.00037116,33038.0,33005.0,0.00031583]
[1610372078343,0.13669724,33038.0,33037.0,0.13632608]
[1610372078543,0.13669724,33038.0,33037.0,0.21561608]
[1610372078945,4.0217,33039.0,33037.0,0.21561608]
[1610372080045,3.917,33039.0,33037.0,0.21561608]
[1610372080246,4.3772,33093.0,33037.0,0.21561608]
[1610372080446,0.13632608,33089.0,33045.0,0.13632608]
[1610372080646,4.3772,33093.0,33045.0,0.20477608]
[1610372081046,0.00756,33046.0,33045.0,0.20509033]
[1610372081246,4.3772,33093.0,33045.0,0.06876425]
[1610372081846,0.00036951,33092.0,33024.0,0.10306]
[1610372082045,0.09757022,33092.0,33024.0,0.10306]
[1610372082446,0.13632608,33025.0,33024.0,0.10306]
[1610372082647,0.23195608,33025.0,33024.0,0.10306]
[1610372082845,0.23195608,33025.0,32996.0,0.34701]
[1610372083045,0.23195608,33025.0,32997.0,0.00031459]
[1610372083648,0.23195608,33025.0,32996.0,0.25]
[1610372084548,0.13632608,32997.0,32996.0,0.25]
[1610372084947,0.20773608,32997.0,32996.0,0.25]
[1610372086150,0.09846,33009.0,32996.0,0.25]
[1610372086350,0.11372,33018.0,32996.0,0.33247]
[1610372086551,0.00037148,33017.0,33008.0,0.13632608]
[1610372086751,0.00037139,33024.0,33008.0,0.13632608]
[1610372086959,0.00037139,33024.0,33008.0,0.22055608]
[1610372087157,4.1952,33012.0,33008.0,0.22055608]
[1610372087359,0.09798,33075.0,33008.0,0.22055608]
[1610372087969,0.02814981,33074.0,33008.0,0.22055608]
[1610372088171,0.00037114,33074.0,33009.0,0.00031559]
[1610372088359,1.0,33112.0,33009.0,0.00031559]
[1610372088360,0.00037088,33073.0,33009.0,0.00031559]
[1610372088558,0.00037088,33073.0,33071.0,0.13632608]
[1610372088758,0.00037081,33082.0,33071.0,0.08073]
[1610372088955,0.00037081,33080.0,33071.0,0.08073]
[1610372089174,0.10152,33080.0,33071.0,0.08073]
[1610372089365,0.10152,33080.0,33008.0,0.08423]
[1610372089555,0.02813369,33079.0,33008.0,0.08423]
[1610372090452,0.02813369,33079.0,33040.0,0.13632608]
[1610372090653,0.02813369,33079.0,33040.0,0.22450608]
[1610372091054,0.02813369,33079.0,33040.0,0.08818]
[1610372091253,4.0897,33075.0,33040.0,0.08818]
[1610372091652,0.0281396,33074.0,33008.0,0.08423]
[1610372092054,0.0281396,33074.0,32996.0,0.33247]
[1610372092455,0.0281396,33074.0,33019.0,0.13632608]
[1610372092653,0.0281396,33074.0,33019.0,0.08041]
[1610372093057,0.10237224,33074.0,32996.0,0.25]
[1610372093458,1.90245403,33066.0,32996.0,0.25]
[1610372093658,1.0,33045.0,32996.0,0.25]
[1610372093858,1.74987077,33037.0,32905.0,0.01]
[1610372094059,1.89061406,33035.0,32906.0,0.0995]
[1610372094258,0.02819361,33019.0,32905.0,0.01]
[1610372094458,0.08123171,33019.0,32947.0,0.13632608]
[1610372094659,0.08086,33019.0,32947.0,0.21416608]
[1610372094859,0.02820087,33018.0,32947.0,0.21416608]
[1610372095663,0.0003718,33018.0,32949.0,0.00031612]
[1610372095861,0.00037013,33017.0,32948.0,0.00031486]
[1610372096060,0.00037013,33036.0,32948.0,0.00031486]
[1610372096360,0.00037008,33044.0,32948.0,0.00031486]
[1610372096563,0.00037008,33044.0,33031.0,0.13632608]
[1610372096760,0.0280661,33044.0,33031.0,0.13632608]
[1610372096962,0.00037008,33044.0,33031.0,0.13632608]
[1610372097163,0.00037008,33044.0,33025.0,0.07421]
[1610372097762,0.00037008,33044.0,33026.0,0.0003145]
[1610372098162,0.00037008,33044.0,33025.0,0.07421]
[1610372098366,0.00037008,33044.0,33014.0,0.07321]
[1610372098563,0.13632608,33015.0,32947.0,0.07784]
[1610372098766,0.22820608,33015.0,32947.0,0.07784]
[1610372098964,0.22820608,33015.0,32963.0,4.3422]
[1610372099163,0.00037139,33014.0,32963.0,4.43364]
[1610372099363,0.00037139,33014.0,32964.0,0.00031605]
[1610372100178,0.00037139,33014.0,32963.0,4.43364]
[1610372100374,0.00037139,33014.0,32964.0,0.00031617]
[1610372100763,0.02817984,33014.0,32963.0,0.09144]
[1610372100963,0.02817984,33014.0,32947.0,0.07784]
[1610372101168,0.02817984,33014.0,32928.0,3.6908]
[1610372101564,0.02817984,33014.0,32948.0,0.00031631]
[1610372101762,0.02817984,33014.0,32948.0,0.06939]
[1610372101963,0.02817984,33014.0,32949.0,0.00031631]
[1610372102764,0.02817984,33014.0,32948.0,0.06939]
[1610372103164,0.02817984,33014.0,32949.0,0.00030582]
[1610372104164,0.00037139,33014.0,32949.0,0.00030582]
[1610372104364,0.00037156,33013.0,32949.0,0.00030582]
[1610372104764,4.1312,33016.0,32949.0,0.00030582]
[1610372104765,0.00037152,33015.0,32949.0,0.00030582]
[1610372104964,0.00037152,33015.0,32949.0,0.02303138]
[1610372106564,0.00037152,33015.0,32949.0,0.00030582]
[1610372106766,0.00037152,33015.0,32950.0,0.00030555]
[1610372106965,0.00037152,33015.0,32949.0,0.0003056]
[1610372107565,0.00037152,33015.0,32949.0,0.02302924]
[1610372107764,0.00037152,33015.0,32949.0,0.0003056]
[1610372108164,0.00037152,33015.0,32950.0,0.00030552]
[1610372108365,0.00037152,33015.0,32949.0,0.00030552]
[1610372109165,4.1312,33016.0,32949.0,0.02293129]
[1610372109970,0.10057,33030.0,32949.0,0.64663129]
[1610372110166,0.00037134,33015.0,32949.0,0.64663129]
[1610372110467,0.00037134,33029.0,33014.0,0.13632608]
[1610372112567,0.00037134,33029.0,33028.0,0.13632608]
[1610372113367,0.00037116,33034.0,33028.0,0.13632608]
[1610372113568,0.00037116,33034.0,33028.0,0.21676608]
[1610372113768,0.00037116,33029.0,33028.0,0.21676608]
[1610372113967,0.00037116,33033.0,33028.0,0.21676608]
[1610372114167,0.00037111,33029.0,33028.0,0.21676608]
[1610372114369,0.00037109,33032.0,33028.0,0.21676608]
[1610372114768,0.00037113,33034.0,33028.0,0.21676608]
[1610372115569,0.00037113,33034.0,33028.0,0.08044]
[1610372115768,0.00037113,33034.0,33019.0,0.08038]
[1610372115967,0.10311113,33034.0,33012.0,0.10843]
[1610372116167,0.10311113,33034.0,32955.0,2.17738798]
[1610372116368,0.0299031,33033.0,32956.0,1.5]
[1610372116568,0.00037139,33033.0,32956.0,1.52301884]
[1610372116768,0.0003713,33032.0,32957.0,0.02302092]
[1610372117168,0.0003713,33033.0,32975.0,4.2313]
[1610372117369,0.0003713,33033.0,32975.0,4.32357]
[1610372117569,0.0003713,33033.0,32976.0,0.00030541]
[1610372118571,0.13632608,33016.0,33008.0,0.13632608]
[1610372118771,0.02990827,33033.0,33008.0,0.13632608]
[1610372118974,0.00037142,33015.0,33008.0,0.23326608]
[1610372119173,0.00037144,33032.0,33008.0,0.23326608]
[1610372119573,0.0299029,33043.0,33008.0,0.23326608]
[1610372120274,0.00037138,33043.0,33009.0,0.0003042]
[1610372120474,0.00036982,33042.0,33009.0,0.0003042]
[1610372120675,0.00036982,33042.0,33021.0,0.13632608]
[1610372120874,0.00036982,33043.0,33021.0,0.20650608]
[1610372121073,0.00036982,33043.0,33022.0,0.0003042]
[1610372122677,0.13632608,33023.0,33021.0,0.07018]
[1610372123278,0.00036998,33022.0,33011.0,0.13632608]
[1610372123476,0.00036996,33043.0,33011.0,0.13632608]
[1610372123675,0.00036996,33043.0,33012.0,0.00030434]
[1610372124678,0.00036996,33043.0,33031.0,0.13632608]
[1610372125076,0.00036996,33043.0,33031.0,0.24113608]
[1610372126075,3.5548,33044.0,33032.0,0.00030414]
[1610372126676,3.5548,33044.0,33043.0,0.13632608]
[1610372126876,3.5548,33044.0,33043.0,0.24960608]
[1610372127076,0.2957,33062.0,33043.0,0.24960608]
[1610372127877,1.85184831,33084.0,33044.0,0.00030401]
[1610372128076,1.860421,33093.0,33044.0,0.00030401]
[1610372128276,1.860421,33093.0,33043.0,1.74960608]
[1610372128478,2.09636424,33100.0,33044.0,0.00030399]
[1610372128678,2.09636424,33100.0,33099.0,0.13632608]
[1610372128879,2.38593415,33100.0,33099.0,0.13632608]
[1610372129078,0.09851,33100.0,33085.0,0.10426]
[1610372129277,0.09887959,33100.0,33046.0,1.5]
[1610372129478,0.10426,33070.0,33046.0,1.5]
[1610372129878,0.00036955,33099.0,33047.0,0.00030401]
[1610372130078,2.14632505,33114.0,33047.0,0.00030401]
[1610372130279,0.00036945,33105.0,33047.0,0.00030401]
[1610372130478,0.08736,33121.0,33047.0,0.00030401]
[1610372130680,2.2505754,33127.0,33120.0,0.13632608]
[1610372130879,0.08443,33129.0,33120.0,0.13632608]
[1610372131080,0.00036936,33125.0,33120.0,0.13632608]
[1610372131680,0.10078,33141.0,33108.0,0.09979]
[1610372132480,0.00036932,33140.0,33108.0,0.09979]
[1610372132680,0.13632608,33122.0,33108.0,0.09979]
[1610372133482,0.07715,33147.0,33108.0,0.09979]
[1610372134086,0.00036889,33146.0,33108.0,0.09979]
[1610372134283,0.07715,33147.0,33108.0,0.09979]
[1610372134683,0.00036925,33146.0,33123.0,0.13632608]
[1610372135285,0.00036925,33146.0,33108.0,0.09979]
[1610372135486,0.07715,33147.0,33108.0,0.09979]
[1610372136086,0.07715,33147.0,33076.0,1.5]
[1610372136289,0.10601,33154.0,33076.0,1.5]
[1610372136487,3.7045,33161.0,33076.0,1.6056]
[1610372136688,3.7045,33161.0,33160.0,0.13632608]
[1610372136888,3.7045,33161.0,33076.0,1.6056]
[1610372136889,3.7045,33161.0,33146.0,0.09153]
[1610372138191,0.11134,33192.0,33152.0,4.0973]
[1610372138590,0.13632608,33183.0,33152.0,4.0973]
[1610372138793,0.13632608,33183.0,33153.0,1.5]
[1610372138990,0.09816,33206.0,33153.0,1.57113]
[1610372139191,0.09816,33206.0,33153.0,0.07113]
[1610372140192,0.09816,33206.0,33152.0,4.0973]
[1610372140590,0.13632608,33153.0,33152.0,4.0973]
[1610372140791,0.23553608,33153.0,33152.0,4.0973]
[1610372141393,0.08949,33164.0,33152.0,4.0973]
[1610372141791,9e-05,33164.0,33152.0,4.0973]
[1610372142592,0.13632608,33197.0,33163.0,0.13632608]
[1610372142793,0.274,33230.0,33163.0,0.24762608]